bitfinex/quotes_SOLUSD_20240726
["timestamp","ask_amount","ask_price","bid_price","bid_amount"]
[1722008922107,15.3007,181.88,181.75,5.502]
[1722008922315,20.0,181.87,181.76,14.85382113]
[1722008922525,20.0,181.87,181.78,13.7522]
[1722008923320,20.0,181.87,181.79,5.5007]
[1722008923519,1.37485472,181.86,181.79,5.5007]
[1722008923831,1.37485472,181.86,181.78,19.2533]
[1722008924204,20.0,181.87,181.75,1.09991492]
[1722008924408,5.4992,181.85,181.76,5.5017]
[1722008924628,5.4992,181.85,181.76,6.60178689]
[1722008925019,20.0,181.87,181.76,13.7539]
[1722008925420,5.4993,181.84,181.76,13.7539]
[1722008925912,5.4993,181.84,181.77,1.10007559]
[1722008927141,20.0,181.87,181.76,13.7539]
[1722008927352,9.92172011,181.86,181.76,13.7539]
[1722008927506,20.0,181.85,181.77,5.5014]
[1722008928135,20.0,181.85,181.75,5.5017]
[1722008928432,1.37511023,181.86,181.75,5.5017]
[1722008928628,1.3752152,181.85,181.74,16.382]
[1722008928821,37.86931502,181.85,181.74,16.382]
[1722008929133,5.5,181.82,181.75,1.10021648]
[1722008929334,45.0,181.84,181.75,1.10021648]
[1722008929335,5.5003,181.81,181.75,1.10021648]
[1722008929545,5.5003,181.81,181.74,16.382]
[1722008930130,5.4999,181.82,181.74,21.8843]
[1722008930731,5.4999,181.82,181.74,16.382]
[1722008930937,5.5004,181.81,181.73,13.7563]
[1722008931113,5.5012,181.78,181.7,11.8251]
[1722008931309,5.5005,181.8,181.71,5.5029]
[1722008931615,5.4998,181.83,181.74,5.5023]
[1722008931813,20.0,181.82,181.75,6.60222693]
[1722008932210,6.5723,181.85,181.76,5.5017]
[1722008932428,6.5723,181.85,181.77,1.10009903]
[1722008932630,20.0,181.84,181.75,5.502]
[1722008932809,21.37517132,181.83,181.7,11.825]
[1722008933016,5.5006,181.8,181.71,6.60362985]
[1722008933238,5.5003,181.81,181.72,5.5029]
[1722008933533,1.3753382,181.81,181.7,6.3217]
[1722008934107,11.29904192,181.81,181.7,6.3217]
[1722008934329,20.0,181.8,181.7,6.3217]
[1722008934531,20.0,181.8,181.73,5.5026]
[1722008935435,20.0,181.8,181.72,5.5029]
[1722008935638,25.5006,181.8,181.72,5.5029]
[1722008935841,5.5008,181.79,181.71,13.7575]
[1722008936022,1.37546155,181.78,181.71,13.7575]
[1722008936219,20.0,181.8,181.71,20.36096773]
[1722008936429,25.5006,181.8,181.71,19.2606]
[1722008936931,6.87635964,181.79,181.71,13.7575]
[1722008937142,5.5012,181.78,181.7,11.8252]
[1722008937334,1.37553744,181.77,181.7,5.5035]
[1722008938135,1.37553744,181.77,181.69,16.5282]
[1722008938136,1.37553704,181.76,181.69,16.5282]
[1722008938538,1.37553704,181.76,181.69,22.032]
[1722008938955,5.5026,181.73,181.65,20.1109]
[1722008939231,5.5026,181.73,181.64,16.4345]
[1722008939232,6.87895105,181.72,181.64,16.4345]
[1722008939433,6.87932215,181.71,181.63,5.5056]
[1722008939636,1.37610358,181.7,181.63,5.5056]
[1722008939946,1.37610358,181.7,181.62,5.5059]
[1722008940139,1.37613956,181.69,181.61,19.2714]
[1722008940323,25.5035,181.71,181.63,5.5056]
[1722008940646,1.37612898,181.7,181.62,5.5059]
[1722008941150,6.87972898,181.7,181.62,5.5059]
[1722008941440,5.5036,181.7,181.61,19.2713]
[1722008942632,5.5036,181.7,181.62,5.5058]
[1722008942816,20.0,181.71,181.63,6.6064139]
[1722008943627,16.0109,181.72,181.66,5.5046]
[1722008943831,16.0109,181.72,181.65,5.505]
[1722008944026,16.0109,181.72,181.66,5.5046]
[1722008944237,16.0109,181.72,181.67,5.5044]
[1722008944433,5.502,181.75,181.67,5.5044]
[1722008945344,21.5708,181.76,181.68,1.10071268]
[1722008945547,16.0691,181.76,181.68,1.10071268]
[1722008945923,16.0691,181.76,181.68,6.60471268]
[1722008946150,16.0691,181.76,181.69,1.10062693]
[1722008946345,5.5021,181.75,181.67,5.5044]
[1722008946639,21.5708,181.76,181.68,5.504]
[1722008947143,16.0691,181.76,181.68,5.504]
[1722008947342,21.5708,181.76,181.67,5.5044]
[1722008947944,21.5708,181.76,181.68,5.5041]
[1722008948247,22.94647496,181.76,181.67,5.5044]
[1722008948544,21.5708,181.76,181.67,5.5044]
[1722008948959,5.5027,181.73,181.65,31.7648]
[1722008949124,5.5027,181.73,181.65,5.5048]
[1722008949330,5.5027,181.73,181.64,5.5053]
[1722008949833,5.5027,181.73,181.65,5.505]
[1722008950550,5.5024,181.74,181.65,5.505]
[1722008950761,1.37583849,181.73,181.66,5.5047]
[1722008951947,5.5024,181.74,181.66,5.5047]
[1722008952342,5.5021,181.75,181.66,5.5047]
[1722008952847,5.5021,181.75,181.67,5.5044]
[1722008953055,5.5021,181.75,181.68,1.10066915]
[1722008953242,5.5021,181.75,181.67,5.5044]
[1722008953639,5.5021,181.75,181.68,1.10066921]
[1722008954044,16.0691,181.76,181.68,1.10066921]
[1722008954242,16.0691,181.76,181.68,6.60456921]
[1722008955054,21.5708,181.76,181.68,6.60456921]
[1722008955241,5.5021,181.75,181.67,19.2651]
[1722008955441,16.0691,181.76,181.66,6.60525058]
[1722008956356,5.5021,181.75,181.66,6.60525058]
[1722008956859,5.5021,181.75,181.67,5.5044]
[1722008957066,16.0691,181.76,181.68,5.504]
[1722008957438,16.0691,181.76,181.69,6.60436739]
[1722008957742,16.0691,181.76,181.69,1.10056739]
[1722008957950,16.0691,181.76,181.68,5.5041]
[1722008958851,21.5709,181.76,181.68,5.5041]
[1722008959044,21.5709,181.76,181.67,5.5044]
[1722008959246,5.5021,181.75,181.67,5.5044]
[1722008960162,6.87781168,181.75,181.67,5.5044]
[1722008960563,21.5708,181.76,181.68,5.5041]
[1722008960759,21.5708,181.76,181.67,5.5044]
[1722008960975,16.0691,181.76,181.66,19.266]
[1722008961272,17.44481269,181.76,181.66,19.266]
[1722008961649,5.5027,181.73,181.66,13.7613]
[1722008961844,6.87826467,181.74,181.66,13.7613]
[1722008962039,25.5021,181.75,181.66,13.7613]
[1722008963056,25.5021,181.75,181.67,5.5043]
[1722008963572,5.5023,181.74,181.66,19.266]
[1722008964152,20.0,181.75,181.67,1.10067049]
[1722008964355,16.0691,181.76,181.68,13.7597]
[1722008964664,16.0691,181.76,181.69,5.5036]
[1722008964987,21.5708,181.76,181.68,19.2638]
[1722008965449,21.5708,181.76,181.68,13.7597]
[1722008965881,21.5708,181.76,181.68,19.2637]
[1722008966279,21.5708,181.76,181.69,1.10056708]
[1722008967075,21.5708,181.76,181.68,19.2637]
[1722008968171,29.1791,181.76,181.71,13.11]
[1722008968379,16.0691,181.76,181.72,1.10046951]
[1722008968579,16.0691,181.76,181.72,14.21046951]
[1722008968749,16.0691,181.76,181.72,13.11]
[1722008969271,16.0691,181.76,181.73,14.2104188]
[1722008969445,16.0691,181.76,181.73,13.11]
[1722008969760,13.11,181.78,181.73,13.11]
[1722008969967,13.11,181.79,181.74,13.11]
[1722008970173,15.2532,181.8,181.76,13.11]
[1722008971065,15.2532,181.8,181.78,13.11]
[1722008971255,18.6101,181.82,181.77,13.11]
[1722008971742,18.6101,181.82,181.76,13.11]
[1722008971946,13.11,181.82,181.77,13.11]
[1722008972175,13.11,181.82,181.77,14.21018362]
[1722008972355,5.4996,181.83,181.77,1.10018362]
[1722008972552,21.3639,181.84,181.77,1.10018362]
[1722008973180,5.4996,181.83,181.76,1.10013499]
[1722008973377,5.4996,181.83,181.75,5.502]
[1722008973584,21.3639,181.84,181.75,5.502]
[1722008974674,21.3639,181.84,181.76,1.10005672]
[1722008974989,5.4996,181.83,181.76,1.10005672]
[1722008976553,5.4996,181.83,181.75,5.502]
[1722008976987,5.4996,181.83,181.76,1.10007576]
[1722008977659,5.4996,181.83,181.77,1.1000761]
[1722008978377,22.2803,181.9,181.78,1.10007683]
[1722008979166,22.2803,181.9,181.76,66.19075866]
[1722008979167,5.4986,181.87,181.76,66.19075866]
[1722008979483,5.4988,181.86,181.78,5.501]
[1722008980966,22.2803,181.9,181.79,5.5007]
[1722008980967,5.4985,181.87,181.79,5.5007]
[1722008981362,5.4985,181.87,181.78,5.501]
[1722008981967,5.4987,181.86,181.78,5.501]
[1722008982169,5.4985,181.87,181.78,5.501]
[1722008982377,1.37482401,181.89,181.76,64.2557]
[1722008982613,86.37482401,181.89,181.76,13.7543]
[1722008982778,26.2,181.88,181.76,13.7543]
[1722008983110,5.4999,181.82,181.73,19.2587]
[1722008983297,5.4996,181.84,181.75,5.502]
[1722008983879,5.4997,181.83,181.75,5.502]
[1722008984382,5.4997,181.83,181.74,5.5022]
[1722008985413,5.4997,181.83,181.75,6.60204007]
[1722008986014,5.5,181.82,181.74,5.5022]
[1722008987219,5.4997,181.83,181.74,5.5022]
[1722008987414,6.87536657,181.82,181.74,5.5022]
[1722008987998,1.37527087,181.81,181.74,5.5022]
[1722008989875,5.4997,181.83,181.74,5.5022]
[1722008990081,1.37530471,181.87,181.77,5.5013]
[1722008990414,5.4992,181.85,181.77,5.5013]
[1722008990579,5.4992,181.85,181.76,5.5016]
[1722008990780,25.4993,181.84,181.76,5.5016]
[1722008992417,13.1,181.83,181.78,13.1]
[1722008992591,14.47512446,181.83,181.78,13.1]
[1722008993584,14.47512446,181.83,181.77,13.1]
[1722008993792,13.1,181.81,181.76,13.1]
[1722008994017,1.37526213,181.8,181.76,13.1]
[1722008994196,5.5006,181.8,181.75,13.1]
[1722008994511,6.87595356,181.8,181.72,20.2207]
[1722008994810,20.0,181.84,181.77,13.1]
[1722008994811,13.1,181.82,181.77,13.1]
[1722008995587,13.1,181.83,181.78,13.1]
[1722008995818,21.669776,181.83,181.78,13.1]
[1722008996111,27.169376,181.83,181.77,13.1]
[1722008996316,21.669776,181.83,181.77,13.1]
[1722008996817,27.169376,181.83,181.77,13.1]
[1722008998111,8.569776,181.83,181.79,13.1]
[1722008999001,8.569776,181.83,181.81,13.1]
[1722009000933,8.569776,181.83,181.79,13.1]
[1722009001283,14.069376,181.83,181.78,13.1]
[1722009001412,14.069476,181.83,181.78,13.1]
[1722009001734,8.569776,181.83,181.8,13.1]
[1722009002733,8.569776,181.83,181.81,13.1]
[1722009003106,8.569776,181.83,181.82,13.1]
[1722009003817,8.569776,181.83,181.81,13.08]
[1722009005156,8.569776,181.83,181.82,13.1]
[1722009005531,8.569776,181.83,181.82,18.5999]
[1722009005826,8.569776,181.83,181.82,63.5999]
[1722009006865,8.569776,181.83,181.82,13.1]
[1722009007353,8.569776,181.83,181.82,18.5999]
[1722009007530,8.569776,181.83,181.82,63.5999]
[1722009009322,8.569776,181.83,181.82,58.1]
[1722009009527,8.569776,181.83,181.82,13.1]
[1722009010064,8.569776,181.83,181.82,18.5999]
[1722009010746,8.569776,181.83,181.82,63.5999]
[1722009012981,16.3501,181.94,181.87,5.4983]
[1722009013284,20.0,181.93,181.9,13.1]
[1722009014047,5.4963,181.94,181.9,13.1]
[1722009014555,18.596,181.95,181.9,13.1]
[1722009015575,5.496,181.95,181.91,13.1]
[1722009016045,13.1,181.96,181.91,13.1]
[1722009016449,18.5958,181.96,181.91,13.1]
[1722009017686,13.1,181.97,181.87,1.09929942]
[1722009017987,13.1,181.97,181.92,13.1]
[1722009020977,13.1,181.95,181.9,13.1]
[1722009021177,5.4954,181.97,181.91,13.1]
[1722009021353,13.1,181.96,181.91,13.1]
[1722009021552,13.1,181.95,181.9,14.19933246]
[1722009021895,13.1,181.97,181.92,13.1]
[1722009022259,13.1,181.97,181.92,14.19922819]
[1722009022482,13.1,181.97,181.93,1.09922476]
[1722009023679,18.5951,181.98,181.93,1.09922476]
[1722009023883,18.5951,181.98,181.92,13.1]
[1722009024667,13.1,181.97,181.92,13.1]
[1722009024867,15.5628,182.0,181.91,13.1]
[1722009024868,13.1,181.96,181.91,13.1]
[1722009025588,15.5628,182.0,181.93,13.1]
[1722009025890,33.1,181.99,181.94,14.19910687]
[1722009026387,20.0,181.99,181.94,13.1]
[1722009026884,20.0,181.99,181.95,13.1]
[1722009027083,20.0,181.99,181.96,13.1]
[1722009027473,18.5942,182.01,181.96,13.1]
[1722009027666,15.2873,182.05,181.99,13.1]
[1722009027862,15.2873,182.05,182.01,13.1]
[1722009029094,19.6454,182.06,182.01,13.1]
[1722009029095,13.1,182.06,182.01,13.1]
[1722009029390,15.6242,182.09,182.04,13.1]
[1722009029595,28.7242,182.09,182.04,13.1]
[1722009029807,18.5921,182.08,182.02,13.1]
[1722009030097,13.1,182.08,182.03,14.19855946]
[1722009030266,13.8916266,182.11,182.05,18.5929]
[1722009030596,0.7916266,182.11,182.06,13.1]
[1722009031303,13.8916266,182.11,182.06,13.1]
[1722009031477,19.3828266,182.11,182.05,13.1]
[1722009031676,0.7916266,182.11,182.06,1.09842078]
[1722009031985,0.7916266,182.11,182.08,13.1]
[1722009032187,0.7916266,182.11,182.09,1.09821959]
[1722009032984,0.7916266,182.11,182.08,13.1]
[1722009033284,0.7916266,182.11,182.1,13.1]
[1722009033870,0.7916266,182.11,182.1,63.5914]
[1722009034091,0.7916266,182.11,182.1,83.5914]
[1722009034292,0.7916266,182.11,182.1,83.7614]
[1722009034664,0.7916266,182.11,182.1,18.5914]
[1722009034865,0.7916266,182.11,182.1,13.1]
[1722009035178,0.7916266,182.11,182.1,18.5914]
[1722009035379,0.7916266,182.11,182.1,63.7614]
[1722009035584,0.7916266,182.11,182.1,63.9314]
[1722009035785,0.7916266,182.11,182.1,63.7614]
[1722009035980,0.7916266,182.11,182.1,63.9314]
[1722009037764,20.0,182.2,182.1,58.44]
[1722009037969,20.0,182.2,182.17,13.1]
[1722009038373,20.0,182.2,182.16,13.1]
[1722009038987,28.4823,182.21,182.17,1.09767591]
[1722009039189,21.2062,182.25,182.18,13.1]
[1722009039388,6.4647,182.26,182.2,13.1]
[1722009039389,13.1,182.26,182.2,13.1]
[1722009039698,22.5767801,182.29,182.21,13.1]
[1722009039874,15.719,182.29,182.21,13.1]
[1722009040075,13.1,182.27,182.21,13.1]
[1722009040277,18.5863,182.27,182.21,13.1]
[1722009040480,13.1,182.24,182.19,13.1]
[1722009040668,13.1,182.22,182.17,13.1]
[1722009041111,13.1,182.23,182.18,13.1]
[1722009041993,13.1,182.23,182.19,1.09757591]
[1722009042295,13.1,182.23,182.18,13.1]
[1722009042676,13.1,182.23,182.16,5.4896]
[1722009042879,18.5876,182.23,182.18,13.1]
[1722009043074,13.1,182.21,182.13,5.4905]
[1722009043286,13.1,182.21,182.13,13.1]
[1722009043287,13.1,182.18,182.13,13.1]
[1722009043495,13.1,182.17,182.12,13.1]
[1722009044095,13.1,182.16,182.11,13.1]
[1722009045802,15.432,182.21,182.12,13.1]
[1722009045986,15.432,182.21,182.13,1.09789509]
[1722009046314,15.432,182.21,182.08,1.0978966]
[1722009046315,5.4885,182.2,182.08,1.0978966]
[1722009046484,5.4885,182.2,182.09,0.17]
[1722009046691,6.86124023,182.19,182.07,66.09795219]
[1722009046874,5.4891,182.18,182.1,5.4914]
[1722009047696,26.86124023,182.19,182.1,5.4914]
[1722009047898,1.372456,182.18,182.09,5.4916]
[1722009048103,1.37253213,182.17,182.07,45.0]
[1722009048302,6.86213213,182.17,182.09,5.4917]
[1722009048478,5.4897,182.16,182.07,5.4921]
[1722009048803,1.37265874,182.15,182.07,5.4921]
[1722009048993,6.86265874,182.15,182.07,5.4921]
[1722009049192,1.3727074,182.19,182.07,5.4921]
[1722009049505,5.4897,182.16,182.08,5.4919]
[1722009050095,1.37269586,182.15,182.07,5.4923]
[1722009050605,1.37269586,182.15,182.08,5.492]
[1722009051102,5.4897,182.16,182.08,5.492]
[1722009051399,5.489,182.18,182.1,5.4914]
[1722009051608,20.0,182.17,182.1,5.4914]
[1722009052200,20.0,182.17,182.09,5.4917]
[1722009052717,6.86246499,182.16,182.08,5.492]
[1722009053180,5.49,182.15,182.07,5.4923]
[1722009054087,6.86236499,182.16,182.08,5.492]
[1722009055101,20.0,182.17,182.09,6.58984127]
[1722009055313,25.4891,182.18,182.1,6.5894071]
[1722009055511,5.4894,182.17,182.11,1.09810903]
[1722009055808,5.4894,182.17,182.03,28.32214793]
[1722009055809,25.4897,182.16,182.07,5.4923]
[1722009055995,5.4901,182.15,182.07,5.4923]
[1722009056188,17.85620193,182.14,182.02,22.081]
[1722009056390,5.4914,182.1,182.02,21.5746]
[1722009056603,5.4911,182.12,182.03,5.4935]
[1722009057491,5.4914,182.11,182.03,5.4935]
[1722009058104,16.4833,182.14,182.0,26.09]
[1722009058414,16.4833,182.14,181.98,6.127]
[1722009058415,5.492,182.09,182.01,5.4941]
[1722009058585,5.4915,182.1,182.01,5.4941]
[1722009058887,5.4923,182.08,182.02,1.09853354]
[1722009059089,80.10026869,182.13,182.0,5.4942]
[1722009059410,5.4921,182.08,181.99,5.4947]
[1722009059712,5.4924,182.07,181.98,5.4948]
[1722009059883,5.4924,182.07,181.99,5.4946]
[1722009060300,27.4632691,182.12,182.0,5.4944]
[1722009060505,20.0,182.11,182.05,5.4929]
[1722009060688,5.4911,182.12,182.01,1.09861301]
[1722009061009,16.4833,182.14,182.06,5.4926]
[1722009061197,21.9737,182.14,182.07,1.09832236]
[1722009061507,16.4833,182.14,182.0,26.09]
[1722009061711,5.4909,182.12,182.01,65.17]
[1722009061909,5.4905,182.13,182.02,1.09837073]
[1722009062209,16.4833,182.14,182.06,5.4926]
[1722009062586,16.4833,182.14,182.07,6.5905391]
[1722009062816,16.4833,182.14,182.08,1.09816935]
[1722009063111,16.4833,182.14,182.08,6.59016935]
[1722009063290,16.4833,182.14,182.08,5.4918]
[1722009063781,16.4833,182.14,182.07,5.4923]
[1722009066785,16.4833,182.14,182.08,5.4919]
[1722009068089,5.4906,182.13,182.05,6.59101518]
[1722009068295,13.05,182.12,182.07,13.05]
[1722009069108,18.5409,182.12,182.07,13.05]
[1722009069306,13.05,182.1,182.03,5.4935]
[1722009069703,13.05,182.1,182.05,13.05]
[1722009070014,13.05,182.08,182.02,13.05]
[1722009070215,13.05,182.07,182.02,13.05]
[1722009070398,18.542,182.08,182.02,13.05]
[1722009071101,13.05,182.07,182.02,13.05]
[1722009072202,5.4918,182.09,182.0,5.4944]
[1722009072394,5.4918,182.09,182.01,1.09859933]
[1722009072814,5.4918,182.09,182.0,5.4944]
[1722009073310,5.4921,182.08,182.0,5.4944]
[1722009073818,28.3761,182.07,181.95,16.2261]
[1722009074017,28.3761,182.07,181.96,1.09875656]
[1722009074910,28.3761,182.07,181.95,16.2261]
[1722009075112,1.37344605,182.06,181.95,16.2261]
[1722009075320,5.493,182.05,181.97,5.4953]
[1722009075616,5.4942,182.01,181.92,15.3644]
[1722009075807,5.4939,182.02,181.92,15.3644]
[1722009076193,1.37376382,182.01,181.92,15.3644]
[1722009076391,5.4936,182.03,181.94,5.496]
[1722009076594,5.4939,182.02,181.94,5.496]
[1722009077423,5.4943,182.01,181.92,16.46341104]
[1722009077727,5.4942,182.01,181.92,5.4966]
[1722009077903,5.4946,182.0,181.92,5.4966]
[1722009078092,5.4942,182.01,181.92,5.4966]
[1722009078296,1.37389252,182.0,181.92,5.4966]
[1722009078499,1.37389252,182.0,181.93,5.4964]
[1722009079518,5.4942,182.01,181.93,5.4964]
[1722009080018,5.4939,182.02,181.9,1.09908345]
[1722009080218,5.4936,182.03,181.94,5.4962]
[1722009080424,20.0,182.02,181.95,5.4958]
[1722009080723,20.0,182.02,181.96,1.09901097]
[1722009080936,28.3763,182.07,181.92,26.12]
[1722009081102,28.3763,182.07,181.93,65.34]
[1722009081304,28.3763,182.07,181.94,1.09877393]
[1722009081607,28.3763,182.07,181.98,5.495]
[1722009082533,22.8837,182.07,181.99,1.09877427]
[1722009082713,22.8837,182.07,181.99,6.59327427]
[1722009082912,16.4624,182.07,182.0,5.4944]
[1722009083145,17.83574606,182.07,181.95,32.6982]
[1722009083308,5.4933,182.04,181.96,5.4957]
[1722009083805,5.493,182.05,181.96,5.4957]
[1722009084003,5.4934,182.04,181.96,5.4957]
[1722009084428,17.83587076,182.07,181.94,16.1653]
[1722009084741,5.4936,182.03,181.93,65.17]
[1722009084914,1.37369619,182.02,181.93,65.0]
[1722009085113,5.4936,182.03,181.95,5.4959]
[1722009085334,5.494,182.02,181.93,20.0]
[1722009085529,5.4942,182.01,181.92,20.0]
[1722009085732,1.37385357,182.0,181.92,5.4968]
[1722009085915,5.4942,182.01,181.93,6.59546533]
[1722009086118,11.9478,182.03,181.94,5.4963]
[1722009086327,11.9478,182.03,181.95,1.09903188]
[1722009086530,11.9478,182.03,181.96,1.09900289]
[1722009086714,11.9478,182.03,181.95,5.4959]
[1722009087417,11.9478,182.03,181.96,1.0989862]
[1722009087816,11.9478,182.03,181.95,5.4959]
[1722009089424,6.86758827,182.02,181.94,5.4962]
[1722009089734,5.4945,182.0,181.92,5.4968]
[1722009089911,5.4945,182.0,181.91,5.4971]
[1722009089912,6.8686714,181.99,181.91,5.4971]
[1722009090420,1.3738714,181.99,181.91,5.4971]
[1722009090915,1.37389461,181.98,181.91,5.4971]
[1722009091117,1.37392827,181.97,181.89,5.4977]
[1722009091411,1.37392827,181.97,181.83,22.6848]
[1722009091412,16.157,182.0,181.9,1.09922915]
[1722009091617,16.157,182.0,181.83,22.6848]
[1722009091618,16.157,182.0,181.94,5.4962]
[1722009092138,16.157,182.0,181.95,5.4959]
[1722009092322,16.157,182.0,181.94,5.4962]
[1722009092706,16.157,182.0,181.95,5.4959]
[1722009092930,6.4542,182.03,181.96,1.09895389]
[1722009093122,6.4542,182.03,181.96,5.4954]
[1722009093325,7.82778426,182.03,181.96,5.4954]
[1722009093833,13.32138426,182.03,181.95,5.4959]
[1722009094233,5.4939,182.02,181.94,5.4962]
[1722009094733,6.86793002,182.01,181.91,16.0192]
[1722009094935,5.4945,182.0,181.9,27.38902341]
[1722009095109,5.4948,181.99,181.9,1.09902341]
[1722009095919,5.4945,182.0,181.89,1.09911056]
[1722009096113,5.4945,182.0,181.9,1.09911076]
[1722009096318,5.4945,182.0,181.89,45.0]
[1722009096518,5.4945,182.0,181.9,20.0]
[1722009096933,5.4945,182.0,181.92,5.4968]
[1722009097117,6.4542,182.03,181.91,5.4971]
[1722009097118,6.86869054,181.99,181.91,5.4971]
[1722009097318,5.4945,182.0,181.92,5.4968]
[1722009097720,1.37388784,181.99,181.92,5.4968]
[1722009097949,5.4948,181.99,181.91,5.4971]
[1722009098323,1.37396735,181.98,181.92,5.4969]
[1722009099741,1.37396735,181.98,181.9,5.4972]
[1722009099951,5.4951,181.98,181.9,5.4972]
[1722009100325,16.5252,181.97,181.9,5.4972]
[1722009100524,1.37407115,181.96,181.85,1.0991544]
[1722009100850,7.44521468,181.95,181.84,29.37504945]
[1722009101032,7.44521468,181.95,181.89,5.4978]
[1722009101234,7.44521468,181.95,181.88,5.4981]
[1722009101428,6.0711,181.95,181.89,5.4977]
[1722009101836,6.0711,181.95,181.91,5.4971]
[1722009102154,6.0711,181.95,181.92,5.4967]
[1722009102318,16.5252,181.97,181.87,26.12]
[1722009102521,16.5252,181.97,181.88,1.26916462]
[1722009102730,16.5252,181.97,181.88,46.26916462]
[1722009102933,16.5252,181.97,181.93,5.4965]
[1722009103332,16.5252,181.97,181.92,5.4968]
[1722009104729,16.5252,181.97,181.88,46.26916462]
[1722009107636,16.5252,181.97,181.9,5.4973]
[1722009107837,16.5252,181.97,181.91,5.4972]
[1722009108236,16.5252,181.97,181.9,5.4974]
[1722009108633,16.5252,181.97,181.88,46.26916462]
[1722009108850,16.5252,181.97,181.93,5.4966]
[1722009109064,16.5252,181.97,181.94,1.09908345]
[1722009109247,16.5252,181.97,181.93,5.4966]
[1722009109557,6.3933,181.99,181.89,1.26907877]
[1722009109558,6.3933,181.99,181.95,5.4959]
[1722009109749,16.4746,182.01,181.96,6.59452983]
[1722009109935,16.4746,182.01,181.97,1.0989079]
[1722009110335,16.4746,182.01,181.97,14.1689079]
[1722009110756,16.4746,182.01,181.98,13.07]
[1722009111225,16.4746,182.01,181.99,1.09880122]
[1722009112031,16.4746,182.01,181.99,14.16880122]
[1722009112236,16.4746,182.01,181.98,5.495]
[1722009113030,16.4746,182.01,181.97,5.4953]
[1722009113231,16.4746,182.01,181.96,5.4956]
[1722009114063,16.4746,182.01,181.94,26.13]
[1722009114257,16.4746,182.01,181.93,0.17]
[1722009114564,16.4746,182.01,181.95,5.4959]
[1722009114954,16.4746,182.01,181.96,5.4956]
[1722009115360,16.4746,182.01,181.94,5.4961]
[1722009115583,16.4746,182.01,181.96,5.4956]
[1722009116466,16.4746,182.01,181.97,5.4953]
[1722009117126,16.4746,182.01,181.96,5.4956]
[1722009117550,16.4746,182.01,181.97,5.4953]
[1722009118457,16.4746,182.01,181.98,5.495]
[1722009119370,16.4746,182.01,181.97,5.4953]
[1722009120245,16.4746,182.01,181.98,5.4951]
[1722009120763,16.4746,182.01,181.93,1.43883878]
[1722009120972,16.4746,182.01,181.99,5.4945]
[1722009121259,16.4746,182.01,182.0,5.4945]
[1722009122062,16.4746,182.01,181.98,5.495]
[1722009122250,16.4746,182.01,181.99,5.4947]
[1722009122761,16.4746,182.01,182.0,5.4945]
[1722009122938,16.3552,182.06,182.01,5.4941]
[1722009123440,16.3552,182.06,182.02,1.09861982]
[1722009124260,16.3552,182.06,182.0,5.4943]
[1722009126240,16.3552,182.06,182.0,5.4944]
[1722009126451,16.3552,182.06,181.98,5.4948]
[1722009126669,16.3552,182.06,182.0,5.4944]
[1722009127341,16.3552,182.06,181.99,5.4947]
[1722009128168,16.3552,182.06,182.0,5.4944]
[1722009128658,16.3552,182.06,182.01,1.09860485]
[1722009128846,16.3552,182.06,181.97,1.09867784]
[1722009129370,16.3552,182.06,181.97,21.09867784]
[1722009130865,16.3552,182.06,181.97,26.59377784]